bitfinex-derivatives/quotes_BTCF0:USTF0_20241021
["timestamp","ask_amount","ask_price","bid_price","bid_amount"]
[1729516106165,0.075398,68152.0,68151.0,0.09360678]
[1729516107378,0.075398,68152.0,68146.0,0.09005689]
[1729516107379,0.073403,68149.0,68148.0,0.073402]
[1729516108375,0.073403,68149.0,68146.0,0.0314]
[1729516108376,0.073403,68147.0,68146.0,0.104804]
[1729516108579,0.073403,68147.0,68146.0,0.1257896]
[1729516110577,0.074403,68147.0,68146.0,0.1257896]
[1729516111079,0.075403,68147.0,68146.0,0.1257896]
[1729516113676,0.075403,68147.0,68146.0,0.0943896]
[1729516115477,0.1204726,68147.0,68146.0,0.0943896]
[1729516116380,0.075403,68147.0,68146.0,0.0943896]
[1729516117977,0.075403,68147.0,68146.0,0.073404]
[1729516134788,0.002,68147.0,68145.0,0.02091643]
[1729516134988,0.073408,68143.0,68142.0,0.00112]
[1729516135181,0.073408,68143.0,68134.0,0.41951571]
[1729516135182,0.073414,68137.0,68136.0,0.02045093]
[1729516135374,0.073408,68143.0,68135.0,0.073416]
[1729516135375,0.073415,68136.0,68135.0,0.073416]
[1729516135593,0.073415,68136.0,68134.0,0.3608]
[1729516135594,0.073416,68135.0,68134.0,0.3608]
[1729516135888,0.073416,68135.0,68134.0,0.434217]
[1729516136273,0.073416,68135.0,68134.0,0.45450998]
[1729516136972,0.075416,68135.0,68134.0,0.45450998]
[1729516139484,0.002,68135.0,68134.0,0.67547623]
[1729516139781,0.073407,68146.0,68145.0,0.073405]
[1729516141094,0.08738703,68146.0,68145.0,0.073405]
[1729516144078,0.08738703,68146.0,68145.0,0.09400173]
[1729516144782,0.01398003,68146.0,68145.0,0.09400173]
[1729516145191,0.073391,68159.0,68158.0,0.073389]
[1729516146186,0.00220145,68161.0,68154.0,0.3608]
[1729516146489,0.00220145,68161.0,68160.0,0.073389]
[1729516146993,0.073383,68168.0,68167.0,0.07338]
[1729516147780,0.011,68161.0,68160.0,0.434189]
[1729516148288,0.011,68161.0,68160.0,1.09368246]
[1729516148591,0.011,68161.0,68160.0,0.65356246]
[1729516149093,0.013,68161.0,68160.0,0.67447891]
[1729516149286,0.086388,68161.0,68160.0,0.29276246]
[1729516149592,0.075388,68161.0,68160.0,0.29276246]
[1729516149895,0.075388,68161.0,68160.0,0.073389]
[1729516150391,0.073394,68157.0,68156.0,0.073391]
[1729516151492,0.075394,68157.0,68156.0,0.073391]
[1729516152179,0.073394,68157.0,68156.0,0.073391]
[1729516152384,0.076394,68157.0,68156.0,0.073391]
[1729516152582,0.079394,68157.0,68156.0,0.073391]
[1729516152887,0.006,68157.0,68156.0,0.073391]
[1729516153094,0.009,68157.0,68156.0,0.073391]
[1729516153884,0.012,68157.0,68156.0,0.073391]
[1729516154085,0.006,68157.0,68156.0,0.073391]
[1729516154284,0.011,68157.0,68156.0,0.073391]
[1729516154685,0.01,68157.0,68156.0,0.073391]
[1729516159498,0.01,68157.0,68156.0,0.434191]
[1729516160700,0.01,68157.0,68156.0,0.073391]
[1729516161095,0.01,68157.0,68156.0,0.434191]
[1729516161301,0.01,68157.0,68156.0,0.073391]
[1729516161599,0.01,68157.0,68156.0,0.434191]
[1729516161990,0.01,68157.0,68156.0,0.073391]
[1729516164406,0.3608,68167.0,68164.0,0.073383]
[1729516164407,0.073384,68165.0,68164.0,0.073383]
[1729516166701,0.082384,68165.0,68164.0,0.074383]
[1729516167199,0.090384,68165.0,68164.0,0.075383]
[1729516171303,0.017,68165.0,68164.0,0.075383]
[1729516171806,0.3608,68181.0,68164.0,0.075383]
[1729516171807,0.073375,68174.0,68173.0,0.073374]
[1729516172011,0.0022009,68175.0,68174.0,0.073374]
[1729516172303,0.0755739,68175.0,68174.0,0.073374]
[1729516172906,0.0022009,68175.0,68174.0,0.073374]
[1729516173306,0.0132009,68175.0,68174.0,0.074374]
[1729516173807,0.0232009,68175.0,68174.0,0.075374]
[1729516173997,0.0232009,68175.0,68174.0,0.09590368]
[1729516174200,0.0965739,68175.0,68174.0,0.075374]
[1729516175205,0.0855739,68175.0,68174.0,0.074374]
[1729516175412,0.0895739,68175.0,68174.0,0.074374]
[1729516175604,0.0865739,68175.0,68174.0,0.075374]
[1729516176397,0.0865739,68175.0,68174.0,0.002]
[1729516176603,0.13162863,68175.0,68174.0,0.002]
[1729516177308,0.5266139,68175.0,68174.0,0.002]
[1729516178910,0.62432613,68175.0,68174.0,0.002]
[1729516179813,0.57167389,68175.0,68174.0,0.002]
[1729516180418,0.59208743,68175.0,68174.0,0.002]
[1729516181107,0.64473885,68175.0,68174.0,0.002]
[1729516182009,0.64253795,68175.0,68174.0,0.002]
[1729516183504,0.54482654,68175.0,68174.0,0.002]
[1729516183910,0.10478654,68175.0,68174.0,0.002]
[1729516186520,0.10478654,68175.0,68160.0,0.02020846]
[1729516186521,0.073386,68163.0,68162.0,0.073387]
[1729516186725,0.073386,68163.0,68156.0,0.07669858]
[1729516186920,0.073392,68160.0,68159.0,0.07339]
[1729516189219,0.075392,68160.0,68159.0,0.07339]
[1729516189419,0.002,68160.0,68159.0,0.07339]
[1729516189821,0.073387,68163.0,68162.0,0.073387]
[1729516191819,0.079387,68163.0,68162.0,0.074387]
[1729516192215,0.073387,68163.0,68162.0,0.073387]
[1729516192526,0.073387,68163.0,68162.0,0.075387]
[1729516192527,0.092387,68163.0,68162.0,0.075387]
[1729516193038,0.088387,68163.0,68162.0,0.075387]
[1729516194521,0.092387,68163.0,68162.0,0.075387]
[1729516195520,0.082387,68163.0,68162.0,0.074387]
[1729516195722,0.091387,68163.0,68162.0,0.075387]
[1729516198418,0.082387,68163.0,68162.0,0.074387]
[1729516198616,0.092387,68163.0,68162.0,0.075387]
[1729516199224,0.082387,68163.0,68162.0,0.074387]
[1729516199425,0.092387,68163.0,68162.0,0.075387]
[1729516205945,0.019,68163.0,68162.0,0.075387]
[1729516206546,0.019,68163.0,68162.0,0.11928558]
[1729516207355,0.019,68163.0,68162.0,0.075387]
[1729516207556,0.092386,68163.0,68162.0,0.075387]
[1729516208145,0.092386,68163.0,68162.0,0.436187]
[1729516209254,0.019,68163.0,68162.0,0.436187]
[1729516210059,0.019,68163.0,68162.0,0.52530271]
[1729516210250,0.019,68163.0,68162.0,0.466587]
[1729516211255,0.3608,68178.0,68176.0,0.073372]
[1729516211449,0.07557224,68177.0,68176.0,0.073372]
[1729516211958,0.00220124,68177.0,68176.0,0.073372]
[1729516212361,0.01120124,68177.0,68176.0,0.074372]
[1729516213059,0.02120124,68177.0,68176.0,0.075372]
[1729516213557,0.06625391,68177.0,68176.0,0.075372]
[1729516215355,0.10219576,68177.0,68176.0,0.075372]
[1729516215545,0.10219576,68177.0,68176.0,0.2947046]
[1729516216149,0.14724059,68177.0,68176.0,0.2947046]
[1729516216353,0.10218792,68177.0,68176.0,0.2947046]
[1729516216549,0.09218792,68177.0,68176.0,0.2947046]
[1729516216953,0.09218792,68177.0,68176.0,0.2937046]
[1729516217257,0.09218792,68177.0,68176.0,0.2947046]
[1729516217258,0.0381405,68177.0,68176.0,0.2947046]
[1729516217655,0.0831885,68177.0,68176.0,0.2947046]
[1729516219158,0.1565595,68177.0,68176.0,0.2947046]
[1729516220265,0.1115115,68177.0,68176.0,0.2947046]
[1729516220462,0.15656254,68177.0,68176.0,0.2947046]
[1729516220760,0.07557224,68177.0,68176.0,0.2947046]
[1729516223548,0.07557224,68177.0,68176.0,0.002]
[1729516228557,0.07557224,68177.0,68176.0,0.075372]
[1729516229659,0.03814325,68177.0,68176.0,0.436172]
[1729516230164,0.00220124,68177.0,68176.0,0.436172]
[1729516231570,0.03814177,68177.0,68176.0,0.436172]
[1729516231975,0.03814177,68177.0,68176.0,0.65645771]
[1729516233370,0.11151277,68177.0,68176.0,0.435172]
[1729516233564,0.11751277,68177.0,68176.0,0.436172]
[1729516233772,0.04914177,68177.0,68176.0,0.436172]
[1729516234264,0.04914177,68177.0,68176.0,0.075372]
[1729516236470,0.04914273,68177.0,68176.0,0.075372]
[1729516236763,0.01320124,68177.0,68176.0,0.075372]
[1729516244176,0.04914289,68177.0,68176.0,0.075372]
[1729516244378,0.09419331,68177.0,68176.0,0.075372]
[1729516246479,0.09199207,68177.0,68176.0,0.075372]
[1729516246781,0.09199208,68177.0,68176.0,0.075372]
[1729516248778,0.08599208,68177.0,68176.0,0.074372]
[1729516248968,0.09199208,68177.0,68176.0,0.075372]
[1729516250664,0.006,68177.0,68176.0,0.074372]
[1729516250878,0.011,68177.0,68176.0,0.075372]
[1729516253385,0.084371,68177.0,68176.0,0.075372]
[1729516260589,0.084371,68177.0,68176.0,0.002]
[1729516260778,0.115271,68177.0,68176.0,0.002]
[1729516260974,0.15121489,68177.0,68176.0,0.002]
[1729516261187,0.59125489,68177.0,68176.0,0.002]
[1729516262688,0.59125489,68177.0,68164.0,0.073384]
[1729516262689,0.073384,68165.0,68164.0,0.073384]
[1729516263176,0.073384,68165.0,68162.0,0.3608]
[1729516263177,0.073386,68163.0,68162.0,0.3608]
[1729516263371,0.073386,68163.0,68162.0,0.45474941]
[1729516264978,0.075386,68163.0,68162.0,0.45474941]
[1729516265184,0.075386,68163.0,68162.0,0.434187]
[1729516265875,0.077386,68163.0,68162.0,0.434187]
[1729516266688,0.075386,68163.0,68162.0,0.434187]
[1729516266979,0.078386,68163.0,68162.0,0.434187]
[1729516268886,0.005,68163.0,68162.0,0.434187]
[1729516272392,0.078386,68163.0,68162.0,0.434187]
[1729516273587,0.078386,68163.0,68162.0,0.073387]
[1729516274301,0.073391,68159.0,68158.0,0.073391]
[1729516274475,0.073391,68159.0,68157.0,0.3608]
[1729516274476,0.073391,68158.0,68157.0,0.3608]
[1729516275494,0.513551,68158.0,68157.0,0.3608]
[1729516275685,0.513551,68158.0,68157.0,0.3628]
[1729516276081,0.073391,68158.0,68157.0,0.3628]
[1729516276681,0.073391,68158.0,68157.0,0.3658]
[1729516276876,0.073391,68158.0,68157.0,0.439193]
[1729516283102,0.0306,68162.0,68157.0,0.3658]
[1729516283395,0.103989,68162.0,68161.0,0.073388]
[1729516284101,0.073391,68158.0,68157.0,0.434192]
[1729516286385,0.073391,68158.0,68157.0,0.437192]
[1729516286886,0.073391,68158.0,68157.0,0.439192]
[1729516287089,0.073391,68158.0,68157.0,0.078392]
[1729516287607,0.073391,68158.0,68157.0,0.439192]
[1729516288904,0.1093422,68158.0,68157.0,0.439192]
[1729516290800,0.1093422,68158.0,68157.0,0.078392]
[1729516290999,0.1093422,68158.0,68157.0,0.439192]
[1729516291199,0.1093422,68158.0,68157.0,0.078392]
[1729516291504,0.073391,68158.0,68157.0,0.439192]
[1729516293416,0.073391,68158.0,68157.0,0.3658]
[1729516293901,0.073391,68158.0,68157.0,0.439193]
[1729516294214,0.073391,68158.0,68157.0,0.3658]
[1729516294402,0.073391,68158.0,68157.0,0.439193]
[1729516294609,0.073391,68158.0,68157.0,0.3658]
[1729516299512,0.073391,68158.0,68157.0,0.439193]
[1729516300303,0.073391,68158.0,68157.0,0.3658]
[1729516303407,0.434191,68158.0,68157.0,0.005]
[1729516304003,0.47925872,68158.0,68157.0,0.005]
[1729516304902,0.434191,68158.0,68157.0,0.005]
[1729516305119,0.434191,68158.0,68149.0,0.41413447]
[1729516305120,0.0734,68150.0,68149.0,0.02013447]
[1729516305314,0.0734,68150.0,68144.0,0.073406]
[1729516305315,0.073395,68155.0,68144.0,0.073406]
[1729516305617,0.073405,68145.0,68144.0,0.073406]
[1729516306508,0.073405,68145.0,68144.0,0.079406]
[1729516306710,0.073405,68145.0,68144.0,0.006]
[1729516307107,0.073407,68144.0,68142.0,0.0643]
[1729516307520,0.001,68145.0,68142.0,0.0643]
[1729516307715,0.073408,68143.0,68142.0,0.0643]
[1729516308429,0.073408,68143.0,68142.0,0.137709]
[1729516308922,0.073408,68143.0,68142.0,0.164709]
[1729516309312,0.073408,68143.0,68142.0,0.086409]
[1729516309513,0.074408,68143.0,68142.0,0.100409]
[1729516310020,0.074408,68143.0,68142.0,0.087409]
[1729516310218,0.075408,68143.0,68142.0,0.101409]
[1729516310712,0.075408,68143.0,68142.0,0.028]
[1729516311119,0.876448,68143.0,68142.0,0.028]
[1729516312021,0.876448,68143.0,68142.0,0.018]
[1729516317020,0.436208,68143.0,68142.0,0.018]
[1729516317225,0.876448,68143.0,68142.0,0.018]
[1729516317726,0.436208,68143.0,68142.0,0.018]
[1729516317926,0.876448,68143.0,68142.0,0.018]
[1729516318127,0.436208,68143.0,68142.0,0.018]
[1729516319637,0.876448,68143.0,68142.0,0.018]
[1729516322134,0.436208,68143.0,68142.0,0.018]
[1729516322936,0.3628,68143.0,68142.0,0.091409]
[1729516323235,0.436208,68143.0,68142.0,0.0491]
[1729516324444,0.436208,68143.0,68142.0,0.122509]
[1729516324745,0.436208,68143.0,68142.0,0.0491]
[1729516325142,0.436208,68143.0,68142.0,0.018]
[1729516334163,0.48128727,68143.0,68142.0,0.018]
[1729516335353,0.5339619,68143.0,68142.0,0.018]
[1729516336053,0.48128727,68143.0,68142.0,0.018]
[1729516336261,0.53396059,68143.0,68142.0,0.018]
[1729516336561,0.53396018,68143.0,68142.0,0.018]
[1729516337464,0.48128727,68143.0,68142.0,0.018]
[1729516338451,0.53396046,68143.0,68142.0,0.018]
[1729516338658,0.48128727,68143.0,68142.0,0.018]
[1729516340254,0.48128603,68143.0,68142.0,0.018]
[1729516341052,0.436208,68143.0,68142.0,0.018]
[1729516341963,0.436208,68143.0,68142.0,0.091409]
[1729516342657,0.002,68143.0,68142.0,0.452209]
[1729516344262,0.3608,68152.0,68151.0,0.073399]
[1729516345556,0.434198,68152.0,68151.0,0.073399]
[1729516346156,0.434198,68152.0,68151.0,0.074399]
[1729516348569,0.434198,68152.0,68151.0,0.001]
[1729516349761,0.073398,68152.0,68151.0,0.001]
[1729516356263,0.073398,68152.0,68130.0,0.04405467]
[1729516356264,0.073417,68134.0,68133.0,0.07561958]
[1729516356464,0.11849486,68134.0,68133.0,0.07561958]
[1729516356671,0.11849486,68134.0,68133.0,0.00220158]
[1729516357380,0.11949486,68134.0,68133.0,0.01620158]
[1729516357876,0.12049486,68134.0,68133.0,0.03020158]
[1729516358774,0.12049486,68134.0,68133.0,0.10361958]
[1729516360073,0.075417,68134.0,68133.0,0.10361958]
[1729516360483,0.075417,68134.0,68133.0,0.101418]
[1729516362376,0.002,68134.0,68133.0,0.462218]
[1729516363883,0.075417,68134.0,68133.0,0.462218]
[1729516365681,0.075417,68134.0,68133.0,0.50627267]
[1729516365884,0.075417,68134.0,68133.0,0.462218]
[1729516373679,0.002,68134.0,68133.0,0.462218]
[1729516377186,0.075417,68134.0,68133.0,0.462218]
[1729516383588,0.075417,68134.0,68133.0,0.101418]
[1729516385184,0.002,68134.0,68133.0,0.101418]
[1729516385881,0.075417,68134.0,68133.0,0.101418]
[1729516386085,0.002,68134.0,68133.0,0.101418]
[1729516386287,0.075417,68134.0,68133.0,0.101418]
[1729516386600,0.002,68134.0,68133.0,0.462218]
[1729516388900,0.04707758,68134.0,68133.0,0.462218]
[1729516389301,0.12049458,68134.0,68133.0,0.462218]
[1729516390201,0.12049521,68134.0,68133.0,0.462218]
[1729516392796,0.075417,68134.0,68133.0,0.462218]
[1729516395096,0.075417,68134.0,68133.0,0.101418]
[1729516400000,0.075417,68134.0,68133.0,0.028]
[1729516400191,0.075417,68134.0,68122.0,0.07435467]
[1729516400397,0.073432,68120.0,68119.0,0.36192]
[1729516400602,0.073432,68120.0,68119.0,0.434233]
[1729516400896,0.07343,68123.0,68122.0,0.07343]
[1729516401501,0.07343,68123.0,68122.0,0.07743]
[1729516402000,0.07443,68123.0,68122.0,0.08943]
[1729516403208,0.001,68123.0,68122.0,0.08743]
[1729516403411,0.002,68123.0,68122.0,0.09143]
[1729516407414,0.075429,68123.0,68122.0,0.09143]
[1729516413315,0.002,68123.0,68122.0,0.09143]
[1729516413696,0.075429,68123.0,68122.0,0.09143]
[1729516416010,0.002,68123.0,68122.0,0.09143]
[1729516423812,0.105719,68133.0,68132.0,0.073419]
[1729516424016,0.073419,68133.0,68132.0,0.073419]
[1729516425117,0.073419,68133.0,68132.0,0.078419]
[1729516425317,0.073419,68133.0,68132.0,0.005]
[1729516425825,0.073419,68133.0,68132.0,0.078419]
[1729516426712,0.073419,68133.0,68132.0,0.005]
[1729516429720,0.11850468,68133.0,68132.0,0.005]
[1729516429920,0.434219,68133.0,68132.0,0.005]
[1729516434815,0.464219,68133.0,68132.0,0.005]
[1729516440121,0.825019,68133.0,68132.0,0.005]
[1729516441122,0.464219,68133.0,68132.0,0.005]
[1729516446625,0.56199559,68133.0,68132.0,0.005]
[1729516447017,0.50930867,68133.0,68132.0,0.005]
[1729516447535,0.87010867,68133.0,68132.0,0.005]
[1729516450326,0.92279752,68133.0,68132.0,0.005]
[1729516450533,0.825019,68133.0,68132.0,0.005]
[1729516450723,0.87010965,68133.0,68132.0,0.005]
[1729516453422,0.825019,68133.0,68132.0,0.005]
[1729516457430,0.795019,68133.0,68132.0,0.005]
[1729516460634,0.073437,68116.0,68115.0,0.0311]
[1729516461849,0.074437,68116.0,68115.0,0.108538]
[1729516462349,0.073437,68116.0,68115.0,0.104538]
[1729516462545,0.075437,68116.0,68115.0,0.111538]
[1729516465546,0.075437,68116.0,68115.0,0.0381]
[1729516469246,0.075437,68116.0,68115.0,0.007]
[1729516471243,0.074437,68116.0,68115.0,0.003]
[1729516471444,0.075437,68116.0,68115.0,0.004]
[1729516473439,0.436237,68116.0,68115.0,0.004]
[1729516473847,0.3628,68116.0,68115.0,0.077438]
[1729516474036,0.3628,68116.0,68115.0,0.004]
[1729516474238,0.436237,68116.0,68115.0,0.077438]
[1729516474443,0.3628,68116.0,68115.0,0.077438]
[1729516475048,0.3618,68116.0,68115.0,0.077438]
[1729516476050,0.3608,68116.0,68115.0,0.076438]
[1729516476841,0.434237,68116.0,68115.0,0.076438]
[1729516477149,0.434237,68116.0,68115.0,0.003]
[1729516498962,0.53203645,68116.0,68115.0,0.003]
[1729516504565,0.89283645,68116.0,68115.0,0.003]
[1729516505776,0.99675645,68116.0,68115.0,0.003]
[1729516506077,0.898957,68116.0,68115.0,0.003]
[1729516506778,0.795037,68116.0,68115.0,0.003]
[1729516506973,0.898957,68116.0,68115.0,0.003]
[1729516507574,0.073454,68100.0,68099.0,0.00220267]
[1729516507972,0.3608,68102.0,68098.0,0.04405467]
[1729516508171,0.073455,68099.0,68098.0,0.04405467]
[1729516508367,0.073455,68099.0,68095.0,0.073459]
[1729516508368,0.3608,68102.0,68095.0,0.04405467]
[1729516508573,0.073455,68099.0,68098.0,0.04405467]
[1729516509166,0.073455,68099.0,68094.0,0.43538]
[1729516509167,0.002,68100.0,68097.0,0.04405467]
[1729516509471,0.002,68100.0,68094.0,0.40485467]
[1729516509472,0.073459,68095.0,68094.0,0.40485467]
[1729516509776,0.07346,68094.0,68093.0,0.04405467]
[1729516509967,0.073462,68093.0,68092.0,0.073462]
[1729516510169,0.073462,68093.0,68092.0,0.04405891]
[1729516510469,0.073462,68093.0,68092.0,0.073463]
[1729516510675,0.073464,68091.0,68090.0,0.05341]
[1729516510879,0.073464,68091.0,68090.0,0.126875]
[1729516511176,0.073457,68097.0,68090.0,0.126875]
[1729516511177,0.07346,68097.0,68096.0,0.073457]
[1729516514076,0.073456,68099.0,68098.0,0.073453]
[1729516514278,0.073438,68116.0,68101.0,0.073453]
[1729516514481,0.073446,68110.0,68109.0,0.073444]
[1729516515279,0.11854521,68110.0,68109.0,0.073444]
[1729516516284,0.13654521,68110.0,68109.0,0.073444]
[1729516517075,0.091446,68110.0,68109.0,0.073444]
[1729516517272,0.018,68110.0,68105.0,0.073448]
[1729516517573,0.073451,68103.0,68102.0,0.139252]
[1729516517780,0.073451,68103.0,68102.0,0.0658]
[1729516518890,0.075451,68103.0,68102.0,0.139252]
[1729516519381,0.077451,68103.0,68102.0,0.139252]
[1729516519588,0.077451,68103.0,68102.0,0.0658]
[1729516522393,0.073453,68101.0,68100.0,0.073454]
[1729516523586,0.073458,68097.0,68096.0,0.073458]
[1729516524583,0.073458,68097.0,68096.0,0.074458]
[1729516525180,0.073455,68099.0,68096.0,0.001]
[1729516525380,0.073455,68099.0,68098.0,0.073456]
[1729516528292,0.073455,68099.0,68098.0,0.001]
[1729516528696,0.434255,68099.0,68098.0,0.074456]
[1729516530195,0.434255,68099.0,68098.0,0.001]
[1729516535799,0.073455,68099.0,68098.0,0.074456]
[1729516536100,0.1185604,68099.0,68098.0,0.074456]
[1729516536492,0.0451054,68099.0,68098.0,0.074456]
[1729516536799,0.093639,68108.0,68107.0,0.073446]
[1729516537098,0.1387409,68108.0,68107.0,0.073446]
[1729516537699,0.093639,68108.0,68107.0,0.073446]
[1729516538294,0.0520984,68108.0,68107.0,0.073446]
[1729516538496,0.007,68108.0,68107.0,0.073446]
[1729516539288,0.014,68108.0,68107.0,0.073446]
[1729516541891,0.014,68108.0,68099.0,0.0936]
[1729516542093,0.073452,68103.0,68102.0,0.07345]
[1729516542288,0.434252,68103.0,68102.0,0.07345]
[1729516544302,0.436252,68103.0,68102.0,0.07345]
[1729516544707,0.438252,68103.0,68102.0,0.07345]
[1729516545005,0.073454,68100.0,68099.0,0.08245999]
[1729516545308,0.073462,68096.0,68095.0,0.073459]
[1729516545897,0.434262,68096.0,68095.0,0.073459]
[1729516547604,0.435262,68096.0,68095.0,0.074459]
[1729516548002,0.435262,68096.0,68095.0,0.001]
[1729516548304,0.436262,68096.0,68095.0,0.001]
[1729516555204,0.07346,68094.0,68093.0,0.073461]
[1729516556200,0.073467,68091.0,68090.0,0.073465]
[1729516558301,0.073467,68091.0,68090.0,0.074465]
[1729516558915,0.073467,68091.0,68090.0,0.001]
[1729516562612,0.073467,68091.0,68090.0,0.074465]
[1729516562912,0.073467,68091.0,68090.0,0.001]
[1729516564510,0.434267,68091.0,68090.0,0.001]
[1729516568221,0.3608,68091.0,68090.0,0.074465]
[1729516568718,0.434264,68091.0,68090.0,0.001]
[1729516580728,0.3608,68091.0,68090.0,0.074465]
[1729516585323,0.434264,68091.0,68090.0,0.001]
[1729516586139,0.434264,68091.0,68090.0,0.074465]
[1729516587133,0.3608,68091.0,68090.0,0.074465]
[1729516587336,0.434264,68091.0,68090.0,0.074465]
[1729516587719,0.3608,68091.0,68090.0,0.074465]
[1729516588224,0.434264,68091.0,68090.0,0.074465]
[1729516588429,0.3608,68091.0,68090.0,0.074465]
[1729516589527,0.40591179,68091.0,68090.0,0.074465]
[1729516589726,0.47937579,68091.0,68090.0,0.074465]
[1729516590029,0.47937579,68091.0,68090.0,0.001]
[1729516591635,0.434264,68091.0,68090.0,0.074465]
[1729516591840,0.434264,68091.0,68090.0,0.001]
[1729516592543,0.3608,68091.0,68090.0,0.001]
[1729516592733,0.3608,68101.0,68091.0,0.073464]
[1729516592931,0.3608,68101.0,68096.0,0.073458]
[1729516592932,0.073455,68099.0,68096.0,0.073458]
[1729516593131,0.073456,68098.0,68096.0,0.073458]
[1729516593735,0.3608,68099.0,68096.0,0.073458]
[1729516593736,0.073457,68097.0,68096.0,0.073458]
[1729516593931,0.11856762,68097.0,68096.0,0.073458]
[1729516594429,0.04511062,68097.0,68096.0,0.073458]
[1729516594640,0.04511062,68097.0,68089.0,0.0332]
[1729516594641,0.073458,68097.0,68089.0,0.0332]
[1729516594943,0.083457,68098.0,68097.0,0.073457]
[1729516595335,0.005,68098.0,68097.0,0.073457]
[1729516596540,0.3608,68099.0,68094.0,0.02060527]
[1729516596840,0.004,68097.0,68096.0,0.073458]
[1729516597341,0.005,68098.0,68097.0,0.073457]
[1729516597527,0.01,68098.0,68097.0,0.073457]
[1729516597735,0.005,68098.0,68097.0,0.073457]
[1729516598151,0.005,68098.0,68092.0,0.09417253]
[1729516598152,0.3668,68099.0,68098.0,0.073456]
[1729516598645,0.3608,68099.0,68098.0,0.073456]
[1729516599646,0.434255,68099.0,68098.0,0.073456]
[1729516600345,0.073458,68097.0,68093.0,0.073462]
[1729516600550,0.073458,68097.0,68090.0,0.073465]
[1729516600748,0.005,68098.0,68097.0,0.073457]
[1729516601158,0.3668,68099.0,68098.0,0.073456]
[1729516601450,0.434255,68099.0,68098.0,0.073456]
[1729516601635,0.440255,68099.0,68098.0,0.073456]
[1729516601841,0.3668,68099.0,68098.0,0.073456]
[1729516602139,0.3668,68099.0,68098.0,0.29324065]
[1729516603754,0.006,68099.0,68098.0,1.15940615]
[1729516603955,0.006,68099.0,68098.0,1.2204181]
[1729516604338,0.3608,68112.0,68098.0,1.2204181]
[1729516604339,0.073443,68111.0,68098.0,1.7469621]
[1729516604541,0.073443,68111.0,68110.0,0.073443]
[1729516604743,0.3608,68112.0,68111.0,0.073442]
[1729516604955,0.47933902,68112.0,68111.0,0.073442]
[1729516605144,0.3608,68112.0,68111.0,0.073442]
[1729516605946,0.3718,68112.0,68111.0,0.073442]
[1729516608142,0.3808,68112.0,68111.0,0.074442]
[1729516609464,0.3808,68112.0,68111.0,0.001]
[1729516609465,0.454241,68112.0,68111.0,0.001]
[1729516612858,0.454241,68112.0,68111.0,0.074442]
[1729516613173,0.4745352,68112.0,68111.0,0.074442]
[1729516615056,0.4745352,68112.0,68111.0,0.001]
[1729516615563,0.4745352,68112.0,68102.0,0.073452]
[1729516615564,0.073451,68103.0,68102.0,0.073452]
[1729516615869,0.073451,68103.0,68099.0,0.073455]
[1729516615870,0.073455,68100.0,68099.0,0.073455]
[1729516616362,0.073456,68098.0,68097.0,0.07565843]
[1729516617068,0.073467,68090.0,68089.0,0.073466]
[1729516617271,0.073467,68088.0,68087.0,0.078467]
[1729516619064,0.074467,68088.0,68087.0,0.084467]
[1729516619267,0.075467,68088.0,68087.0,0.088467]
[1729516619860,0.002,68088.0,68087.0,0.088467]
[1729516621573,0.075467,68088.0,68087.0,0.088467]
[1729516635584,0.073667,68088.0,68087.0,0.088467]
[1729516643203,0.434467,68088.0,68087.0,0.088467]
[1729516644097,0.434467,68088.0,68078.0,0.09907258]
[1729516644098,1.480567,68088.0,68078.0,0.02559458]
[1729516644301,1.480567,68088.0,68039.0,0.8669765]
[1729516644302,0.3608,68063.0,68039.0,0.8669765]
[1729516644478,0.7255,68049.0,68009.0,0.872]
[1729516644680,0.3608,68063.0,67973.0,0.01379725]
[1729516644681,0.7216,68011.0,67973.0,0.01379725]
[1729516644873,0.8794,68062.0,67960.0,0.3217]
[1729516644874,0.31669,67984.0,67966.0,0.4343]
[1729516645089,0.073545,68016.0,67966.0,0.4343]
[1729516645090,0.3608,67975.0,67974.0,0.002]
[1729516645291,0.3608,67975.0,67950.0,0.3608]
[1729516645292,0.3608,67971.0,67911.0,0.01379725]
[1729516645499,0.073582,67982.0,67936.0,0.3608]
[1729516645500,0.3608,67947.0,67936.0,0.3608]
[1729516645792,0.015,67966.0,67923.0,0.3608]
[1729516645793,0.28501886,67925.0,67923.0,0.3608]
[1729516645999,0.28501886,67925.0,67924.0,0.38198191]
[1729516646206,0.28501886,67925.0,67876.0,0.073696]
[1729516646207,0.6,67925.0,67886.0,0.01381399]
[1729516646491,0.6,67925.0,67767.0,0.22146364]
[1729516646492,0.3608,67864.0,67801.0,0.3608]
[1729516646680,0.38798292,67924.0,67787.0,0.01842229]
[1729516646681,0.073676,67896.0,67866.0,0.1396393]
[1729516646877,0.7216,67867.0,67828.0,0.3608]
[1729516647079,0.3608,67829.0,67827.0,0.44131365]
[1729516647286,0.30914559,67823.0,67778.0,0.02216]
[1729516647488,0.4548888,67827.0,67793.0,0.073786]
[1729516647686,0.3608,67806.0,67795.0,0.3608]
[1729516647889,0.1831207,67806.0,67795.0,0.323574]
[1729516648079,0.1831207,67806.0,67771.0,0.068]
[1729516648080,0.3608,67796.0,67773.0,0.3608]
[1729516648280,0.00221653,67812.0,67736.0,0.0315]
[1729516648281,0.3608,67783.0,67770.0,0.073811]
[1729516648499,0.00221653,67812.0,67782.0,0.3608]
[1729516648683,0.36301653,67812.0,67801.0,0.3608]